Cogmind - Beta 13 @@@ ROGUE MODE // 2024.07.07 @ 15:51:14 Player: RealTimeWarfare Result: Destroyed by as-55610 with Assembled Rifle Performance ------------- Evolutions (0) 0 Regions Visited (2) 400 Robots Destroyed (20) 100 Value Destroyed (422) 422 Prototype IDs (2) 40 Alien Tech Used (0) 0 Bonus (0) 0 TOTAL SCORE: 962 Bonus ------- None Cogmind --------- Core Integrity 0/250 Matter 290/300 Energy 123/125 System Corruption 8% Temperature Cool (0) Movement Rolling (105) Ox1 Location -10/Mines Parts ------- > --- POWER (1) -------- Light Ion Engine > --- PROPULSION (2) --- Wheel Compact Wheel > --- UTILITY (2) ------ High-capacity Storage Unit Utility Shielding > --- WEAPON (2) ------- Light Assault Rifle Ripper > --- INVENTORY (20) --- Light Ion Engine Light Treads Light Treads Light Treads Light Treads Light Treads Wheel High-capacity Storage Unit Structural Scanner Visual Processing Unit Visual Processing Unit Terrain Scanner Improved Terrain Scanner Utility Shielding Utility Shielding Small Laser Small Laser Datajack Mining Laser Peak State ------------ > --- POWER ------------ Light Ion Engine > --- PROPULSION ------- Wheel Compact Wheel > --- UTILITY ---------- High-capacity Storage Unit Utility Shielding > --- WEAPON ----------- Mining Laser Ripper > --- INVENTORY -------- Light Ion Engine Light Treads Light Treads Light Treads Light Treads Light Treads High-capacity Storage Unit Structural Scanner Visual Processing Unit Visual Processing Unit Terrain Scanner Improved Terrain Scanner Utility Shielding Utility Shielding Small Laser Small Laser Light Assault Rifle Datajack [Rating: 12] Favorites ----------- Power Light Ion Engine Engine Light Ion Engine Propulsion Compact Wheel Wheel Compact Wheel Utility High-capacity Storage Unit Device Tractor Beam Storage High-capacity Storage Unit Protection Utility Shielding Weapon Assault Rifle Energy Gun Small Laser Ballistic Gun Assault Rifle Special Weapon Mining Laser Slashing Weapon Ripper Special Melee Weapon Datajack Build | -11 -10 -10 ------- Run | Yrd Mat Min Slots Evolved . | . . . Power . | . . . Propulsion . | . . . Utility . | . . . Weapon . | . . . Parts Attached 33 | 8 21 4 Power 5 | 1 4 . Engine 5 | 1 4 . Core . | . . . Reactor . | . . . Propulsion 5 | 3 1 1 Treads . | . . . Leg . | . . . Wheel 5 | 3 1 1 Hover . | . . . Flight . | . . . Utility 5 | 2 3 . Device 2 | 1 1 . Storage 2 | 1 1 . Processor . | . . . Hackware . | . . . Protection 1 | . 1 . Artifact . | . . . Weapon 18 | 2 13 3 Energy Gun 3 | 1 2 . Energy Cannon . | . . . Ballistic Gun 8 | 1 6 1 Ballistic Cannon . | . . . Launcher . | . . . Special Weapon 3 | . 2 1 Impact Weapon . | . . . Slashing Weapon 1 | . . 1 Piercing Weapon . | . . . Special Melee Weapon 3 | . 3 . Unidentified Prototypes . | . . . Parts Lost 7 | . 5 2 Power 2 | . 2 . Propulsion 2 | . 1 1 Utility 1 | . 1 . Weapon 2 | . 1 1 Highest Loss Streak 2 | . 2 2 To Critical Strikes . | . . . Average Slot Usage (%) 96 | . 95 98 Engine 12 | . 11 14 Wheel 26 | . 26 27 Device 5 | . 6 . Storage 13 | . 13 14 Protection 7 | . 6 14 Energy Gun 12 | . 13 5 Ballistic Gun 13 | . 13 12 Naked Turns . | . . . Heaviest Build 49 | 12 49 48 Greatest Support 32 | 32 32 32 Greatest Overweight (x) 2 | . 2 2 Average Overweight (x) . | . 1 1 Largest Inventory Capacity 20 | 8 20 20 Average Capacity 18 | 7 19 20 Most Carried 20 | 8 20 20 Average Carried 17 | 5 18 19 Final Capacity 20 | 8 20 20 Final Carried 20 | 8 20 19 Class Distribution -------------------- 90% | Mutant 9% | Scavenger-Mutant Dominant Class ---------------- Mutant | -10/Materials Mutant | -10/Mines Resources | -11 -10 -10 ----------- Run | Yrd Mat Min Matter Collected 578 | 235 287 56 Remotely 236 | 135 101 . Salvage Created 592 | 146 446 . Parts 55 | 10 45 . Haulers Intercepted . | . . . Recyclers Shooed . | . . . Parts Field Recycled . | . . . Retrieved Matter . | . . . Parts Self-Destructed . | . . . Prevented . | . . . Kills | -11 -10 -10 ------- Run | Yrd Mat Min Combat Hostiles Destroyed 14 | . 14 . Guns 12 | . 12 . AOE 2 | . 2 . Classes Destroyed 6 | 2 4 . Builder 1 | . 1 . Tunneler 2 | 2 . . Recycler 1 | 1 . . Watcher 2 | . 2 . Swarmer 6 | . 6 . Grunt 8 | . 8 . Best Kill Streak 5 | 2 5 . Combat Bots Only 5 | . 5 . Max Kills in Single Turn 2 | 2 2 . Gunslinging . | . . . Exploded 2 | . 2 . Melee . | . . . Uniques/NPCs Destroyed . | . . . Combat | -11 -10 -10 -------- Run | Yrd Mat Min Hostile Shots Fired 81 | . 75 6 Missed 25 | . 22 3 Damage Taken 751 | 29 640 82 Core 255 | 29 202 24 Absorbed by Shields . | . . . Redirected to Shielding 3 | . 3 . Regen/Repaired (Parts) 91 | . 91 . Core Remaining (%) 88 | 88 . . Volleys Fired 48 | 2 40 6 Largest 2 | 2 2 1 Hottest 140 | 60 140 100 Shots Fired 92 | 4 82 6 Gun 85 | 4 77 4 Cannon . | . . . Launcher . | . . . Special 7 | . 5 2 Kinetic 41 | 2 35 4 Thermal 51 | 2 47 2 Explosive . | . . . Electromagnetic . | . . . Robot Hit Streak 9 | 3 9 2 Robot Miss Streak 4 | . 4 1 Penetration Max . | . . . Secondary Targets 2 | . 2 . Max Gunslinging Chain 1 | . 1 . Shots Hit Robots 56 | 3 51 2 Core Hits 39 | 7 30 2 Critical Kills 1 | . 1 . Critical Parts Destroyed . | . . . Critical Strikes 1 | . 1 . Destroy 1 | . 1 . Melee Attacks 1 | . 1 . Impact . | . . . Slashing . | . . . Piercing . | . . . Sneak Attacks . | . . . Combat Hostiles . | . . . Follow-up Attacks . | . . . Damage Inflicted 718 | 96 598 24 Guns 610 | 51 535 24 Cannons . | . . . Explosions 39 | . 39 . Melee . | . . . Ramming 45 | 45 . . Kinetic 316 | 27 265 24 Thermal 318 | 24 294 . Explosive 39 | . 39 . Electromagnetic . | . . . Impact . | . . . Slashing . | . . . Piercing . | . . . Highest Corruption 8 | 2 2 8 Average Corruption 2 | 2 2 5 Corruption Purged . | . . . Corruption Blocked . | . . . Effects 35 | 2 27 6 Message Errors 8 | . 7 1 Matter Fused 6 | . 4 2 Heat Flow Errors 6 | 1 4 1 Energy Discharges 3 | . 2 1 Parts Rejected 1 | . 1 . Data Loss (minor) 5 | 1 3 1 Misfires 6 | . 6 . Overload Shots . | . . . Overflow Damage 18 | . 18 . Projectiles . | . . . Explosions 18 | . 18 . Melee . | . . . Knockbacks . | . . . Impact . | . . . Kinetic . | . . . Secondary . | . . . Self-Inflicted Damage 133 | 19 114 . Shots 1 | . 1 . Rammed 14 | 14 . . Targets Rammed 14 | 14 . . Kicked . | . . . Crushed . | . . . Highest Temperature 266 | 236 224 266 Average Temperature 76 | 146 69 91 Received Heat Transfer 201 | . 201 . Effects 1 | 1 . . Energy Bleed 1 | 1 . . Siege Activations . | . . . Robots Corrupted . | . . . Combat Hostiles . | . . . Parts Fried . | . . . Impact Corruptions . | . . . Robots Melted . | . . . Combat Hostiles . | . . . Parts Melted 2 | . 2 . Heat Transferred 822 | 50 772 . Parts Sabotaged . | . . . Parts Stolen . | . . . Parts Stripped . | . . . Power Chain Reactions . | . . . Alert | -11 -10 -10 ------- Run | Yrd Mat Min Peak Influence 189 | 15 189 22 Initial 21 | . 9 21 Average 85 | 8 103 9 Maximum Alert Level . | . . . Low Security (%) 100 | 100 100 100 Level 1 . | . . . Level 2 . | . . . Level 3 . | . . . Level 4 . | . . . Level 5 . | . . . High Security . | . . . Max Security . | . . . Squads Dispatched 2 | . 2 . Investigation 1 | . 1 . Extermination . | . . . Reinforcement 1 | . 1 . Assault . | . . . Garrison . | . . . Intercept . | . . . Searches Triggered . | . . . Construction Impeded . | . . . Haulers Reinforced . | . . . Active Scanning Responses . | . . . Cargo Convoy Interrupts . | . . . Stealth | -11 -10 -10 --------- Run | Yrd Mat Min Distress Signals 2 | . 2 . Communications Jammed . | . . . Distress Signals . | . . . Times Spotted 27 | . 22 5 Peak Tracking Total 5 | . 5 4 Tactical Retreats 1 | . 1 . Traps | -11 -10 -10 ------- Run | Yrd Mat Min Traps Triggered 3 | . 3 . Indirectly . | . . . Trap Hack Attempts . | . . . Triggered . | . . . Disarmed . | . . . Reprogrammed . | . . . Reused . | . . . Traps Extracted . | . . . Installed . | . . . Triggered . | . . . Machines | -11 -10 -10 ---------- Run | Yrd Mat Min Machines Disabled 2 | . 2 . Max in Single Turn 1 | . 1 . Machines Repaired . | . . . Machines Dismantled . | . . . Machines Sabotaged . | . . . Overloaded Fab Kills . | . . . Hacking | -11 -10 -10 --------- Run | Yrd Mat Min Machines Accessed 7 | . 7 . Terminals 6 | . 6 . Fabricators . | . . . Repair Stations 1 | . 1 . Recycling Units . | . . . Scanalyzers . | . . . Garrison Access . | . . . Total Hacks 31 | . 31 . Successful 12 | . 12 . Failed 19 | . 19 . Catastrophic 2 | . 2 . Database Lockouts . | . . . Manual 13 | . 13 . Terminals 24 | . 24 . Fabricators . | . . . Repair Stations 7 | . 7 . Recycling Units . | . . . Scanalyzers . | . . . Garrison Access . | . . . Terminal Hacks 7 | . 7 . Record 1 | . 1 . Robot Analysis 2 | . 2 . Prototype ID Bank 1 | . 1 . Branch Access Points 1 | . 1 . Locate Traps 1 | . 1 . Investigation Status 1 | . 1 . Fabricator Hacks . | . . . Repair Station Hacks 5 | . 5 . Scan Component 2 | . 2 . Repair 2 | . 2 . Refit 1 | . 1 . Recycling Unit Hacks . | . . . Scanalyzer . | . . . Garrison Access Hacks . | . . . Unauthorized Hacks . | . . . Terminals . | . . . Fabricators . | . . . Repair Stations . | . . . Recycling Units . | . . . Scanalyzers . | . . . Garrison Access . | . . . Data Cores Recovered . | . . . Used . | . . . Hacking Detections 7 | . 7 . Full Trace Events 6 | . 6 . Feedback Events . | . . . Feedback Blocked . | . . . Robot Schematics Acquired . | . . . Robots Built . | . . . Authchips . | . . . Time . | . . . Total Robot Build Rating . | . . . Part Schematics Acquired . | . . . Parts Built . | . . . Authchips . | . . . Time . | . . . Total Part Build Rating . | . . . Parts Repaired 2 | . 2 . Time 52 | . 52 . Parts Recycled . | . . . Recycled Matter . | . . . Retrieved Matter . | . . . Retrieved Components . | . . . Parts Scanalyzed . | . . . Part Schematics Acquired . | . . . Parts Damaged . | . . . Bothacking | -11 -10 -10 ------------ Run | Yrd Mat Min Used RIF Installer . | . . . Robots Hacked 1 | . 1 . Non-combat 1 | . 1 . Combat . | . . . Robot Hacks Applied 1 | . 1 . parse_system 1 | . 1 . Relay Couplers Released . | . . . Fabnet Peak Effective % . | . . . Robots Rewired . | . . . Allies Hacked . | . . . Hacks Repelled . | . . . Allies | -11 -10 -10 -------- Run | Yrd Mat Min Total Allies . | . . . Largest Group . | . . . Highest-Rated Group . | . . . Highest-Rated Ally . | . . . Total Orders . | . . . Ally Attacks . | . . . Total Damage . | . . . Kills . | . . . Allies Corrupted . | . . . Allies Melted . | . . . Intel | -11 -10 -10 ------- Run | Yrd Mat Min Robot Analysis Total 2 | . 2 . Derelict Logs Recovered . | . . . Drone Launches . | . . . Drone Recoveries . | . . . Exploration | -11 -10 -10 ------------- Run | Yrd Mat Min Turns Passed 2005 | 142 1631 232 Spaces Moved 1352 | 103 1064 185 Core 25 | 25 . . Treads . | . . . Legs . | . . . Wheels 1327 | 78 1064 185 Hover . | . . . Flight . | . . . Fastest Speed 50 | 50 100 105 Average Speed 112 | 87 115 109 Slowest Speed 130 | 100 130 130 Overloaded Moves . | . . . Propulsion Burnouts . | . . . Robots Hopped . | . . . Cave-ins Triggered 1 | . . 1 Exploration Rate (%) 38 | 5 90 20 Regions Visited 2 Branch Regions 1 Pre-discovered Areas . | . . . Known Exits Taken 1 | . 1 . Unknown Exits Taken 1 | 1 . . Scrap Searched 1 | . . 1 Spaces Dug 2 | . . 2 Terrain Destroyed 45 | . 43 2 Melee . | . . . Projectile 3 | . 1 2 AOE 42 | . 42 . Terrain Rammed . | . . . Walls Destroyed . | . . . Machines Disabled . | . . . Actions | -11 -10 -10 --------- Run | Yrd Mat Min Total 1739 | 150 1383 206 Wait 237 | 7 222 8 Move 1350 | 102 1063 185 Hop . | . . . Pick Up 50 | 16 32 2 Fast Attach . | . . . Attach 23 | 8 13 2 Detach . | . . . Swap 10 | . 8 2 Drop 6 | 1 4 1 Fire 48 | 2 40 6 Melee 1 | . 1 . Ram 14 | 14 . . Kick . | . . . Crush . | . . . Escape Stasis . | . . . Rewire . | . . . Trap . | . . . Miscellaneous . | . . . Route ------- -11/Scrapyard -10/Materials (discovered 4 exits: [*Mat x3] / *Min) -10/Mines History --------- Turn | Location | Event 3 | -11/Scrapyard | Discovered new exit (range 15) 143 | -11/Scrapyard | Entered Materials 395 | -10/Materials | Identified exit to Mines 484 | -10/Materials | Build established: Mutant 526 | -10/Materials | Discovered new exit (range 14) 944 | -10/Materials | Core integrity fell below 50% 1270 | -10/Materials | Repaired Mining Laser 1296 | -10/Materials | Repaired Sml. Laser 1364 | -10/Materials | Discovered new exit (range 16) 1511 | -10/Materials | Core integrity fell below 20% 1559 | -10/Materials | Discovered new exit (range 15) 1774 | -10/Materials | Entered Mines 1854 | -10/Mines | A weapon hastily lodged in a ceiling crevice suddenly fell to the ground 1869 | -10/Mines | Crushed by falling debris 1877 | -10/Mines | Assembled infested the area 1882 | -10/Mines | Assisted by a Guerilla fighting off Assembled 2006 | -10/Mines | Destroyed by as-55610 with Assembled Rifle Last Messages --------------- Acquired 29 matter. Acquired Wheel. System corrupted: Energy discharge (-28). System corrupted: Matter fused (-7). K-01 Serf collects debris. Acquired 3 matter. K-01 Serf collects debris. Acquired 3 matter. K-01 Serf collects debris. Acquired 18 matter. Acquired 3 matter. K-01 Serf collects debris. K-01 Serf destroyed. K-01 Serf collects debris. HV Slug penetrates Earth. K-01 Serf destroyed. The unstable cave ceiling collapses. HV Slug penetrates as-23461. as-23461 knocked back. HV Slug penetrates Wall. Map ----- +----------------------------------------------------+ | ?????????????????????????????????????????????????? | | ?????????????????????????????????????????????????? | | ?????????????????????????????????????????????????? | | ?????????????????????????????????????????????????? | | ?????????????????????????????????????????????????? | | ?????????????????????????????????????????????????? | | ?????????????????????????????????????????????????? | | ?????????????????????????????????????????????????? | | ?????????????????????????????????????????????????? | | ?????????????????????????????????????????????????? | | ?????????????????????????????????????????????????? | | ?????????????????????????????????????????????????? | | ???????????????????#?????????????????????????????? | | ??????????????????? ?????????????????????????????? | | ??????????????????# ?????????????????????????????? | | ??????????????????# #????????????????????????????? | | ??????????????????# #????????????????????????????? | | ??????????????????# #????????????????????????????? | | ??????????????????# #????????????????????????????? | | ??????????????????# #????????????????????????????? | | ??????????#?####### ###?????????????????????????? | | ???????? # # ##???????????????????????? | | ????????? ## # ###?????????????????????? | | ????????????# # # ##????????????????????? | | ????????????# ## ! % h ##???????????????????? | | ????????????# a = @ % #???????????????????? | | ????????????# a = ###?????????????????? | | ????????????# =%! # #?????????????????? | | ????????????#; #* ### #?????????????? | | ???????????# # ###?? |%#?????????????? | | ?????????????# # # ##?????### =a ????????????? | | ?????????????#?##### ##?????????? ###???????????? | | ??????????????????#; #????????????#?????????????? | | ??????????????????## #??????????????????????????? | | ???????????????????# %#??????????????????????????? | | ???####????????????# #??????????????????????????? | | ??## ###??????????# #??????????????????????????? | | ??# #####???#### #??????????????????????????? | | ??# #???# #??????????????????????????? | | ??# ## #???# #??????????????????????????? | | ?## ## ##### ####??????????????????????????? | | ?# # #?????????????????????????????? | | ?# ## ########?????????????????????????????? | | ?# """ ## #????????????????????????????????????? | | ?# """ #????????????????????????????????????? | | ?## """ ## ###??????????????????????????????????? | | ??# ## ###????????????????????????????????? | | ??## ### ### ##????###????????????????????????? | | ???#####?# #????# ????????????????????????? | | ?????????#### ##???# #????????????????????????? | +----------------------------------------------------+ Best States ------------- Heat Dissipation 25 Energy Generation 10 Energy Capacity 250 Matter Stores 300 Matter Capacity 300 Sight Range 16 Terrain Scan Density 10 Utility Shielding 33 Evasion (%) 50 Item Schematics ----------------- None Robot Schematics ------------------ None Fabricated ------------ Nothing Alien Tech Used ----------------- None Achievements -------------- Part-time Mechanic Unlikely Earthworm Use The Force Challenges ------------ None Game ------ Seed ArmageddonHypercooledNetwork Manual? 0 Play Time 00:55:52 Cumulative 3.1 hours Start 2024.07.07 @ 14:50:38 End 2024.07.07 @ 15:51:14 Sessions 1 Manual Loads 0 Difficulty Rogue Special Mode None Game No. 3 Rogue 3 Adventurer 0 Explorer 0 Win Type - Total 0 Types 0/0/0/0/0/0/0/0/0 Lore% 1 Gallery% 4 Achievement% 4 Wizard Run 0 Options --------- Layout 1 ASCII 0 Keyboard 0 Movement Numpad Keybinds 0 Fullscreen 1 Font 24/Smallcaps Map View 50x35 Zoom Use 0% Tactical HUD 0 Map Filters NONE Filters NONE Steam 1 RUN: 4bb54e03-91fd-489f-b097-bc9638eeffc5